bitfinex-derivatives/quotes_BTCF0:USTF0_20251225
["timestamp","ask_amount","ask_price","bid_price","bid_amount"]
[1766696876463,0.0113851,87895.0,87863.0,0.01267628]
[1766696876678,0.09334639,87890.0,87870.0,0.09334639]
[1766696876878,0.02605602,87889.0,87871.0,0.0113881]
[1766696877075,0.0113851,87895.0,87871.0,0.0413881]
[1766696877280,0.02605615,87894.0,87871.0,0.0413881]
[1766696877473,0.00017065,87891.0,87874.0,0.00017065]
[1766696877674,0.02605615,87890.0,87875.0,0.05708]
[1766696877879,0.02605334,87889.0,87875.0,0.08708]
[1766696878079,0.00017065,87891.0,87875.0,0.08708]
[1766696878279,0.02605329,87890.0,87875.0,0.08708]
[1766696878476,0.00017065,87891.0,87875.0,0.08708]
[1766696878781,0.00017065,87891.0,87875.0,0.18388]
[1766696878782,0.02605125,87890.0,87875.0,0.18388]
[1766696878979,0.00017065,87891.0,87875.0,0.18388]
[1766696879169,0.02605125,87890.0,87875.0,0.18388]
[1766696879370,0.00017065,87891.0,87875.0,0.18388]
[1766696879670,0.02604964,87890.0,87875.0,0.18388]
[1766696879870,0.00017065,87891.0,87875.0,0.18388]
[1766696880070,0.02604964,87890.0,87876.0,0.0113876]
[1766696880271,0.00017065,87891.0,87876.0,0.0413876]
[1766696880474,0.02604959,87890.0,87876.0,0.0413876]
[1766696880674,0.00017065,87891.0,87876.0,0.0413876]
[1766696880980,0.02604956,87890.0,87879.0,0.0113871]
[1766696881180,0.00017065,87891.0,87879.0,0.0413871]
[1766696881483,0.0260496,87890.0,87879.0,0.0413871]
[1766696881671,0.00017065,87891.0,87879.0,0.0413871]
[1766696881970,0.02604842,87890.0,87879.0,0.0413871]
[1766696882170,0.00017065,87891.0,87879.0,0.0413871]
[1766696882380,0.06121246,87909.0,87880.0,0.09334639]
[1766696882583,0.1799277,87908.0,87880.0,0.12334639]
[1766696882879,0.0113842,87903.0,87883.0,0.0113866]
[1766696883078,0.0260477,87902.0,87884.0,0.05708]
[1766696883284,0.0260477,87902.0,87884.0,0.08708]
[1766696883474,0.09334639,87900.0,87884.0,0.08708]
[1766696883682,0.0374324,87899.0,87884.0,0.08708]
[1766696883979,0.0260477,87898.0,87884.0,0.08708]
[1766696886483,0.05708,87903.0,87888.0,0.09334639]
[1766696886684,0.05708,87903.0,87890.0,0.0113857]
[1766696886876,0.05708,87903.0,87890.0,0.0413857]
[1766696890484,0.05708,87905.0,87890.0,0.0413857]
[1766696892179,0.05708,87905.0,87892.0,0.0113855]
[1766696892374,0.06121246,87907.0,87892.0,0.0413855]
[1766696892575,0.05704,87906.0,87892.0,0.0223855]
[1766696893587,0.07259606,87907.0,87892.0,0.0223855]
[1766696893781,0.05704,87905.0,87892.0,0.0223855]
[1766696895287,0.07259606,87907.0,87892.0,0.0223855]
[1766696895476,0.05704,87906.0,87892.0,0.0223855]
[1766696896485,0.06121246,87907.0,87896.0,0.09334639]
[1766696896685,0.0113814,87924.0,87905.0,0.0113837]
[1766696896986,0.0113811,87926.0,87910.0,0.09334639]
[1766696897182,0.02470617,87926.0,87910.0,0.03]
[1766696897382,0.0113811,87926.0,87910.0,0.03]
[1766696897785,0.0113814,87924.0,87910.0,0.03]
[1766696897978,0.01354611,87926.0,87893.0,0.00017065]
[1766696898183,0.01354611,87926.0,87899.0,0.0113846]
[1766696898489,0.0113825,87916.0,87899.0,0.0413846]
[1766696898691,0.02527777,87915.0,87899.0,0.0413846]
[1766696898890,0.0113825,87916.0,87899.0,0.0413846]
[1766696899082,0.02527775,87915.0,87899.0,0.0413846]
[1766696899283,0.0113825,87916.0,87899.0,0.0413846]
[1766696899688,0.011382,87919.0,87893.0,0.00017065]
[1766696899880,0.0113828,87913.0,87893.0,0.03]
[1766696900080,0.0113839,87905.0,87893.0,0.03]
[1766696901192,0.01155415,87908.0,87893.0,0.03]
[1766696901391,0.02526751,87907.0,87893.0,0.03]
[1766696901579,0.01155415,87908.0,87893.0,0.03]
[1766696901781,0.02526651,87907.0,87893.0,0.03]
[1766696902095,0.01155415,87908.0,87893.0,0.03]
[1766696902395,0.02526556,87907.0,87893.0,0.03]
[1766696902688,0.01155415,87908.0,87893.0,0.03]
[1766696903195,0.011384,87904.0,87893.0,0.03]
[1766696904785,0.011384,87904.0,87893.0,0.014]
[1766696907079,0.011384,87904.0,87890.0,0.00017065]
[1766696907284,0.0113849,87897.0,87890.0,0.03017065]
[1766696907484,0.0113848,87898.0,87890.0,0.03017065]
[1766696907685,0.0113848,87898.0,87884.0,0.05708]
[1766696907686,0.05708,87902.0,87880.0,0.05708]
[1766696907887,0.02526487,87901.0,87880.0,0.08708]
[1766696908086,0.05708,87902.0,87880.0,0.08708]
[1766696908314,0.02526486,87901.0,87880.0,0.08708]
[1766696908596,0.02526486,87900.0,87880.0,0.08708]
[1766696908793,0.02526486,87899.0,87882.0,0.00017065]
[1766696908997,0.02526486,87898.0,87882.0,0.03017065]
[1766696909198,0.0113849,87897.0,87882.0,0.03017065]
[1766696909496,0.0113845,87900.0,87882.0,0.04155745]
[1766696909682,0.0252673,87899.0,87884.0,0.0113865]
[1766696909880,0.0113845,87900.0,87884.0,0.0413865]
[1766696909881,0.0252673,87898.0,87884.0,0.0413865]
[1766696910085,0.0113845,87900.0,87884.0,0.0413865]
[1766696910290,0.02526744,87899.0,87884.0,0.0413865]
[1766696910489,0.02526744,87898.0,87884.0,0.0413865]
[1766696910693,0.0113845,87900.0,87884.0,0.0413865]
[1766696910893,0.02526834,87899.0,87884.0,0.0413865]
[1766696911092,0.02526834,87898.0,87884.0,0.0413865]
[1766696911406,0.0113845,87900.0,87884.0,0.0413865]
[1766696911598,0.02526962,87899.0,87884.0,0.0413865]
[1766696911897,0.02526962,87898.0,87884.0,0.0413865]
[1766696912093,0.02526963,87897.0,87884.0,0.0413865]
[1766696912296,0.02526963,87896.0,87884.0,0.0413865]
[1766696912596,0.05708,87902.0,87884.0,0.0413865]
[1766696912792,0.02527096,87901.0,87884.0,0.0413865]
[1766696912998,0.02527096,87900.0,87884.0,0.0413865]
[1766696913192,0.02527096,87899.0,87884.0,0.0413865]
[1766696913392,0.02527096,87898.0,87884.0,0.0413865]
[1766696913595,0.02527096,87897.0,87884.0,0.0413865]
[1766696913901,0.02527096,87896.0,87886.0,0.0113862]
[1766696914096,0.0113844,87901.0,87886.0,0.0413862]
[1766696914400,0.02527146,87900.0,87886.0,0.0413862]
[1766696914594,0.02527146,87899.0,87886.0,0.0413862]
[1766696914795,0.02527146,87898.0,87886.0,0.0413862]
[1766696915096,0.02527146,87897.0,87886.0,0.0413862]
[1766696915399,0.02527146,87896.0,87886.0,0.0413862]
[1766696915601,0.0113844,87901.0,87886.0,0.0413862]
[1766696915802,0.02526998,87900.0,87886.0,0.0413862]
[1766696916002,0.02526998,87899.0,87886.0,0.0413862]
[1766696916205,0.02526998,87898.0,87886.0,0.0413862]
[1766696916497,0.02526998,87897.0,87886.0,0.0413862]
[1766696916702,0.02526998,87896.0,87886.0,0.0413862]
[1766696916905,0.0113844,87901.0,87886.0,0.0413862]
[1766696917104,0.02527177,87900.0,87886.0,0.0413862]
[1766696917305,0.02527177,87899.0,87886.0,0.0413862]
[1766696917507,0.02527177,87898.0,87886.0,0.03]
[1766696917805,0.02527177,87897.0,87886.0,0.03]
[1766696918105,0.02527177,87896.0,87886.0,0.03]
[1766696918405,0.0113846,87899.0,87886.0,0.03]
[1766696918600,0.02527178,87898.0,87886.0,0.03]
[1766696918802,0.02527178,87897.0,87886.0,0.03]
[1766696919004,0.02527178,87896.0,87886.0,0.03]
[1766696919203,0.0113846,87899.0,87886.0,0.03]
[1766696919404,0.02527179,87898.0,87886.0,0.03]
[1766696919594,0.02527179,87897.0,87886.0,0.03]
[1766696919894,0.02527179,87896.0,87886.0,0.03]
[1766696920092,0.0684643,87902.0,87886.0,0.03]
[1766696920291,0.02527184,87901.0,87886.0,0.03]
[1766696920503,0.02527184,87900.0,87886.0,0.03]
[1766696920704,0.02527184,87899.0,87886.0,0.03]
[1766696920908,0.02527184,87898.0,87886.0,0.03]
[1766696921106,0.02527184,87897.0,87886.0,0.03]
[1766696921309,0.02527184,87896.0,87886.0,0.03]
[1766696921509,0.0684643,87902.0,87886.0,0.03]
[1766696921709,0.02500399,87901.0,87886.0,0.03]
[1766696921904,0.02500399,87900.0,87886.0,0.03]
[1766696922103,0.02500399,87899.0,87886.0,0.03]
[1766696922307,0.0684643,87902.0,87886.0,0.03]
[1766696922499,0.02500411,87901.0,87886.0,0.03]
[1766696922698,0.02500411,87900.0,87886.0,0.03]
[1766696922903,0.02500411,87899.0,87886.0,0.03]
[1766696923104,0.0684643,87902.0,87886.0,0.03]
[1766696923306,0.02500425,87901.0,87886.0,0.03]
[1766696923505,0.02500425,87900.0,87886.0,0.03]
[1766696923801,0.02500425,87899.0,87886.0,0.03]
[1766696924009,0.0684643,87902.0,87886.0,0.03]
[1766696924196,0.02500439,87901.0,87886.0,0.03]
[1766696924401,0.02500439,87900.0,87886.0,0.03]
[1766696924700,0.02500439,87899.0,87886.0,0.03]
[1766696924901,0.0684643,87902.0,87886.0,0.03]
[1766696925101,0.02500449,87901.0,87887.0,0.0113861]
[1766696925401,0.02500449,87900.0,87887.0,0.0413861]
[1766696925602,0.02500449,87899.0,87887.0,0.0413861]
[1766696925901,0.0684643,87902.0,87887.0,0.0413861]
[1766696926103,0.02500468,87901.0,87887.0,0.0413861]
[1766696926304,0.02500468,87900.0,87887.0,0.0413861]
[1766696926504,0.02500468,87899.0,87887.0,0.0413861]
[1766696926713,0.0684643,87902.0,87887.0,0.0413861]
[1766696926903,0.02500479,87901.0,87887.0,0.0413861]
[1766696927104,0.02500479,87900.0,87887.0,0.0413861]
[1766696927313,0.02500479,87899.0,87887.0,0.0413861]
[1766696927610,0.02500479,87898.0,87887.0,0.0413861]
[1766696927813,0.0684643,87902.0,87887.0,0.0413861]
[1766696928004,0.02501242,87901.0,87887.0,0.0413861]
[1766696928205,0.02501242,87900.0,87887.0,0.0413861]
[1766696928404,0.02501242,87899.0,87887.0,0.0413861]
[1766696928610,0.0968,87904.0,87887.0,0.0413861]
[1766696928611,0.00017065,87908.0,87891.0,0.0113856]
[1766696928805,0.05725065,87908.0,87891.0,0.03]
[1766696929210,0.05725065,87908.0,87893.0,0.0113853]
[1766696929412,0.00017065,87908.0,87893.0,0.0413853]
[1766696931729,0.00017065,87908.0,87893.0,0.0233853]
[1766696932328,0.00017065,87908.0,87895.0,0.011385]
[1766696932525,0.00017065,87908.0,87895.0,0.041385]
[1766696936426,0.00017065,87908.0,87897.0,0.0113848]
[1766696936628,0.00017065,87908.0,87897.0,0.0413848]
[1766696939136,0.00017065,87908.0,87897.0,0.0213848]
[1766696940337,0.00017065,87908.0,87897.0,0.0327696]
[1766696940837,0.02491441,87907.0,87897.0,0.0327696]
[1766696941038,0.02491441,87906.0,87897.0,0.0327696]
[1766696941239,0.02491441,87905.0,87897.0,0.0327696]
[1766696941442,0.00017065,87908.0,87897.0,0.0327696]
[1766696941629,0.02491334,87907.0,87897.0,0.0327696]
[1766696941830,0.00017065,87908.0,87897.0,0.0327696]
[1766696942038,0.06114099,87921.0,87897.0,0.0213848]
[1766696942341,0.12965469,87934.0,87917.0,0.0113822]
[1766696942544,0.05708,87933.0,87917.0,0.0413822]
[1766696946246,0.05708,87933.0,87917.0,0.0243822]
[1766696947345,0.05708,87933.0,87917.0,0.0357644]
[1766696948239,0.05708,87933.0,87919.0,0.0113819]
[1766696948438,0.05708,87933.0,87921.0,0.0113816]
[1766696948639,0.05708,87933.0,87921.0,0.0413816]
[1766696949350,0.05708,87933.0,87921.0,0.03]
[1766696953947,0.02466277,87932.0,87921.0,0.03]
[1766696954145,0.02466277,87931.0,87921.0,0.03]
[1766696954451,0.02466277,87930.0,87921.0,0.03]
[1766696954647,0.02466277,87929.0,87921.0,0.03]
[1766696954953,0.02466277,87928.0,87921.0,0.03]
[1766696955152,0.02466277,87927.0,87921.0,0.03]
[1766696955354,0.05708,87933.0,87921.0,0.03]
[1766696955553,0.02466446,87932.0,87921.0,0.03]
[1766696955754,0.02466446,87931.0,87921.0,0.03]
[1766696955963,0.02466446,87930.0,87921.0,0.03]
[1766696956153,0.02466446,87929.0,87921.0,0.03]
[1766696956353,0.02466446,87928.0,87921.0,0.03]
[1766696956554,0.02466446,87927.0,87921.0,0.03]
[1766696956755,0.05708,87933.0,87921.0,0.03]
[1766696956958,0.02466632,87932.0,87921.0,0.03]
[1766696957154,0.02466632,87931.0,87921.0,0.03]
[1766696957354,0.02466632,87930.0,87921.0,0.03]
[1766696957550,0.02466632,87929.0,87921.0,0.03]
[1766696957750,0.02466632,87928.0,87921.0,0.03]
[1766696958051,0.02466632,87927.0,87921.0,0.03]
[1766696958360,0.11026701,87937.0,87921.0,0.03]
[1766696958361,0.05708,87942.0,87921.0,0.08708]
[1766696958556,0.02467267,87941.0,87921.0,0.08708]
[1766696958858,0.02467267,87940.0,87921.0,0.08708]
[1766696959059,0.02467267,87939.0,87921.0,0.08708]
[1766696959359,0.02467267,87938.0,87921.0,0.08708]
[1766696959560,0.02467267,87937.0,87921.0,0.08708]
[1766696959763,0.0684589,87943.0,87921.0,0.08708]
[1766696959954,0.0246715,87942.0,87921.0,0.08708]
[1766696960146,0.0246715,87941.0,87926.0,0.011381]
[1766696960352,0.0246715,87940.0,87926.0,0.041381]
[1766696960552,0.0246715,87939.0,87926.0,0.041381]
[1766696960753,0.0246715,87938.0,87926.0,0.041381]
[1766696961063,0.0246715,87937.0,87926.0,0.041381]
[1766696961263,0.0684589,87943.0,87926.0,0.041381]
[1766696961465,0.02466932,87942.0,87926.0,0.041381]
[1766696961662,0.02466932,87941.0,87926.0,0.041381]
[1766696961861,0.02466932,87940.0,87926.0,0.041381]
[1766696962063,0.02466932,87939.0,87926.0,0.041381]
[1766696962258,0.02466932,87938.0,87926.0,0.041381]
[1766696962558,0.02466932,87937.0,87926.0,0.041381]
[1766696962758,0.02466932,87936.0,87926.0,0.041381]
[1766696963061,0.02466932,87935.0,87926.0,0.041381]
[1766696963260,0.0684589,87943.0,87926.0,0.041381]
[1766696963460,0.02467466,87942.0,87930.0,0.0113806]
[1766696963656,0.02467466,87941.0,87932.0,0.0113802]
[1766696963862,0.02467466,87940.0,87932.0,0.0113802]
[1766696964060,0.02467466,87939.0,87932.0,0.0113802]
[1766696964357,0.02467466,87938.0,87932.0,0.0113802]
[1766696964558,0.02467466,87937.0,87932.0,0.0113802]
[1766696964858,0.05708,87943.0,87932.0,0.0113802]
[1766696965060,0.0246753,87942.0,87932.0,0.0113802]
[1766696965259,0.0246753,87941.0,87932.0,0.0413802]
[1766696965463,0.0246753,87940.0,87930.0,0.1025719]
[1766696965763,0.0246753,87939.0,87930.0,0.03]
[1766696965966,0.0246753,87938.0,87927.0,0.0113809]
[1766696966268,0.0246753,87937.0,87927.0,0.0413809]
[1766696966468,0.0684589,87943.0,87927.0,0.0413809]
[1766696966674,0.0246796,87942.0,87927.0,0.0413809]
[1766696966860,0.0246796,87941.0,87927.0,0.0413809]
[1766696967168,0.0246796,87940.0,87927.0,0.0413809]
[1766696967369,0.0246796,87939.0,87927.0,0.0413809]
[1766696967669,0.0246796,87938.0,87927.0,0.0413809]
[1766696967876,0.0246796,87937.0,87927.0,0.0413809]
[1766696968075,0.0246796,87936.0,87927.0,0.0413809]
[1766696968274,0.0684589,87943.0,87927.0,0.0413809]
[1766696968480,0.02468842,87942.0,87927.0,0.0413809]
[1766696968669,0.02468842,87941.0,87927.0,0.03]
[1766696968871,0.0113797,87937.0,87927.0,0.03]
[1766696969071,0.0113799,87935.0,87927.0,0.03]
[1766696969369,0.02468842,87934.0,87927.0,0.03]
[1766696969568,0.02468842,87933.0,87927.0,0.03]
[1766696969773,0.0113798,87936.0,87927.0,0.03]
[1766696969970,0.02469591,87935.0,87927.0,0.03]
[1766696970171,0.02469591,87934.0,87927.0,0.03]
[1766696970376,0.02469591,87933.0,87927.0,0.03]
[1766696970574,0.0113798,87936.0,87927.0,0.03]
[1766696970775,0.02469602,87935.0,87927.0,0.03]
[1766696970976,0.02469602,87934.0,87927.0,0.03]
[1766696971174,0.02469602,87933.0,87927.0,0.03]
[1766696971375,0.02470587,87932.0,87927.0,0.03]
[1766696971677,0.0113795,87939.0,87927.0,0.03]
[1766696971877,0.02470584,87938.0,87927.0,0.03]
[1766696972077,0.02470584,87937.0,87927.0,0.03]
[1766696972274,0.02470584,87936.0,87927.0,0.03]
[1766696972577,0.02470584,87935.0,87927.0,0.03]
[1766696972771,0.0113795,87939.0,87927.0,0.03]
[1766696972978,0.02470729,87938.0,87927.0,0.03]
[1766696973277,0.02470729,87937.0,87927.0,0.03]
[1766696973479,0.02470729,87936.0,87927.0,0.03]
[1766696973678,0.02470729,87935.0,87927.0,0.03]
[1766696973878,0.02470768,87934.0,87927.0,0.03]
[1766696974078,0.0113795,87939.0,87927.0,0.03]
[1766696974284,0.02470769,87938.0,87927.0,0.03]
[1766696974578,0.02470769,87937.0,87927.0,0.03]
[1766696974782,0.02470769,87936.0,87927.0,0.03]
[1766696974981,0.02470769,87935.0,87927.0,0.03]
[1766696975179,0.0113791,87942.0,87927.0,0.03]
[1766696975385,0.05704,87942.0,87929.0,0.0113806]
[1766696975576,0.05704,87942.0,87929.0,0.0413806]
[1766696977376,0.06119459,87951.0,87942.0,0.0113789]
[1766696977572,0.0113771,87957.0,87941.0,0.0113791]
[1766696977777,0.06119459,87958.0,87943.0,0.0187788]
[1766696977778,1e-08,87953.0,87943.0,0.0187788]
[1766696977979,1e-08,87953.0,87943.0,0.0487788]
[1766696978176,1e-08,87953.0,87945.0,0.0113786]
[1766696978373,1e-08,87953.0,87951.0,0.0113778]
[1766696978574,0.09676,87969.0,87954.0,0.0113774]
[1766696978775,0.05704,87968.0,87954.0,0.03]
[1766696978991,0.05704,87968.0,87955.0,0.0113773]
[1766696980076,0.05704,87972.0,87958.0,0.1025719]
[1766696980276,0.05704,87972.0,87958.0,0.03]
[1766696980486,0.05704,87972.0,87956.0,0.00017056]
[1766696980692,0.06119459,87987.0,87965.0,0.011376]
[1766696980892,0.05,87989.0,87965.0,0.011376]
[1766696980893,0.05931318,87983.0,87965.0,0.041376]
[1766696983685,0.00227318,87983.0,87965.0,0.041376]
[1766696983886,0.05931318,87983.0,87965.0,0.041376]
[1766696985382,0.07068698,87983.0,87965.0,0.041376]
[1766696986201,0.00227318,87983.0,87965.0,0.03]
[1766696986591,0.00227318,87983.0,87970.0,0.1025719]
[1766696986789,0.00227318,87983.0,87970.0,0.1325719]
[1766696987790,0.00227318,87983.0,87970.0,0.03]
[1766696988090,0.00227318,87983.0,87970.0,0.1325719]
[1766696988289,0.00227318,87983.0,87970.0,0.03]
[1766696988698,0.00227318,87983.0,87969.0,0.0113755]
[1766696989000,0.00227318,87983.0,87969.0,0.0413755]
[1766696990804,0.00227318,87983.0,87970.0,0.1025719]
[1766696991103,0.00227318,87983.0,87970.0,0.1325719]
[1766696991805,0.01364688,87983.0,87970.0,0.03]
[1766696993392,0.0113741,87981.0,87970.0,0.03]
[1766696993894,0.01364698,87983.0,87970.0,0.03]
[1766696999608,0.00227318,87983.0,87971.0,0.0113752]
[1766696999809,0.00227318,87983.0,87971.0,0.0413752]
[1766697001207,0.01364698,87983.0,87971.0,0.03]
[1766697001410,0.011374,87981.0,87971.0,0.03]
[1766697001605,0.00227318,87983.0,87971.0,0.01]
[1766697001908,0.0113752,87972.0,87964.0,0.057]
[1766697002111,0.0113748,87975.0,87964.0,0.087]
[1766697002609,0.0113751,87973.0,87964.0,0.087]
[1766697003012,0.0113747,87976.0,87964.0,0.087]
[1766697003907,0.0113749,87974.0,87964.0,0.087]
[1766697005810,0.0113746,87977.0,87964.0,0.087]
[1766697006009,0.02448261,87976.0,87964.0,0.087]
[1766697006209,0.02448261,87975.0,87964.0,0.087]
[1766697006410,0.02450057,87974.0,87964.0,0.087]
[1766697006629,0.02450057,87973.0,87964.0,0.087]
[1766697006914,0.0113746,87977.0,87964.0,0.087]
[1766697007511,0.0113746,87977.0,87965.0,0.01136]
[1766697007711,0.0113746,87977.0,87965.0,0.04136]
[1766697015324,0.0113744,87978.0,87965.0,0.04136]
[1766697015519,0.06346777,87983.0,87965.0,0.04136]
[1766697015520,0.057,87981.0,87965.0,0.04136]
[1766697015927,0.02989,87981.0,87965.0,0.04136]
[1766697016627,0.041264,87981.0,87965.0,0.04136]
[1766697017526,0.0113743,87979.0,87965.0,0.04136]
[1766697017726,0.02989,87981.0,87965.0,0.04136]
[1766697018932,0.00227318,87983.0,87970.0,0.1025719]
[1766697019112,0.06119459,87986.0,87971.0,0.057]
[1766697019318,0.06119459,87986.0,87971.0,0.087]
[1766697019514,0.0113736,87985.0,87971.0,0.087]
[1766697019719,0.0113738,87983.0,87971.0,0.087]
[1766697023530,0.0113735,87986.0,87971.0,0.087]
[1766697023829,0.0113735,87986.0,87972.0,0.01136]
[1766697024026,0.0113735,87986.0,87972.0,0.04136]
[1766697024231,0.0113731,87988.0,87974.0,0.0113748]
[1766697024431,0.0113731,87988.0,87974.0,0.0413748]
[1766697024631,0.0683728,87991.0,87974.0,0.0413748]
[1766697025032,0.057,87990.0,87976.0,0.0113746]
[1766697025227,0.057,87990.0,87976.0,0.0413746]
[1766697025732,0.057,87990.0,87976.0,0.03]
[1766697026132,0.01,88000.0,87976.0,0.03]
[1766697026331,0.0113703,88010.0,87987.0,0.0113731]
[1766697026635,0.0113703,88010.0,87991.0,0.0113726]
[1766697026935,0.0113703,88010.0,87991.0,0.0413726]
[1766697027435,0.00227163,88043.0,87991.0,0.0413726]
[1766697027436,0.02928,88040.0,87996.0,0.03070343]
[1766697027731,0.011367,88035.0,88016.0,0.0113695]
[1766697027930,0.01,88038.0,88022.0,0.0113687]
[1766697028132,0.09899163,88043.0,88024.0,0.0113683]
[1766697028133,0.05704,88037.0,88024.0,0.0113683]
[1766697028329,0.05704,88044.0,88026.0,0.0113681]
[1766697028518,0.05704,88046.0,88026.0,0.04153855]
[1766697028717,0.0684056,88046.0,88026.0,0.04153855]
[1766697029127,0.0814617,88046.0,88026.0,0.04153855]
[1766697029335,0.011366,88044.0,88026.0,0.03017045]
[1766697029517,0.011366,88044.0,88026.0,0.00017045]
[1766697029721,0.011366,88044.0,88026.0,0.03017045]
[1766697029919,0.011366,88044.0,88026.0,0.00017045]
[1766697030534,0.011366,88043.0,88026.0,0.00017045]
[1766697030729,0.06968249,88046.0,88026.0,0.03017045]
[1766697030932,0.06968249,88046.0,87990.0,0.14341358]
[1766697030933,0.06968249,88046.0,87972.0,0.01136]
[1766697030934,0.0113678,88030.0,88014.0,0.09668]
[1766697031236,0.0113678,88030.0,88015.0,0.05704]
[1766697031637,0.0113678,88030.0,88015.0,0.08704]
[1766697031838,0.0113678,88030.0,88015.0,0.05704]
[1766697032040,0.0113678,88030.0,88014.0,5e-08]
[1766697032228,0.0113694,88017.0,88014.0,5e-08]
[1766697032428,0.0113694,88017.0,88007.0,0.05704]
[1766697032830,0.0113697,88014.0,88007.0,0.05704]
[1766697033137,0.0113694,88017.0,88007.0,0.05704]
[1766697033728,0.0113684,88024.0,88007.0,0.05704]
[1766697033929,0.05704,88026.0,88007.0,0.05704]
[1766697034131,0.0113688,88022.0,88007.0,0.05704]
[1766697034737,0.0113688,88022.0,88007.0,0.08704]
[1766697034931,0.0113688,88022.0,88007.0,0.05704]
[1766697036743,0.0113688,88022.0,88007.0,0.08704]
[1766697037246,0.0113688,88022.0,88007.0,0.05704]
[1766697037845,0.0113683,88025.0,88007.0,0.0984106]
[1766697039537,0.15372,88024.0,88007.0,0.0984106]
[1766697041737,0.00017002,88031.0,88007.0,0.03]
[1766697041940,0.02325762,88031.0,88014.0,0.0113696]
[1766697042149,0.01189002,88031.0,88014.0,0.0413696]
[1766697042650,0.00017002,88031.0,88014.0,0.0413696]
[1766697042848,0.05721002,88031.0,88014.0,0.0413696]
[1766697046542,0.05704,88030.0,88014.0,0.0413696]
[1766697046743,0.05721002,88031.0,88014.0,0.0413696]
[1766697047748,0.0113677,88030.0,88014.0,0.0413696]
[1766697047942,0.0113678,88030.0,88014.0,0.03]
[1766697048142,0.011368,88028.0,88014.0,0.03]
[1766697048759,0.011368,88028.0,88011.0,0.0113701]
[1766697050141,0.011368,88028.0,88011.0,0.0413701]
[1766697050640,0.0113682,88026.0,88011.0,0.0413701]
[1766697050850,0.0113682,88026.0,88011.0,0.0113701]
[1766697051050,0.0113682,88026.0,88011.0,0.0413701]
[1766697051253,0.0113682,88026.0,88011.0,0.0113701]
[1766697051445,0.05721002,88031.0,88011.0,0.03]
[1766697051653,0.05721002,88031.0,88006.0,0.0684107]
[1766697051948,0.05721002,88031.0,88006.0,0.0984107]
[1766697052862,0.0113685,88024.0,88008.0,0.0113705]
[1766697053055,0.0113687,88022.0,88006.0,0.05704]
[1766697053260,0.0113687,88022.0,88007.0,0.0113706]
[1766697053460,0.0113687,88022.0,88007.0,0.0413706]
[1766697053671,0.00017002,88031.0,88007.0,0.03]
[1766697053961,0.00017002,88031.0,88017.0,0.0113692]
[1766697054259,0.00017002,88031.0,88017.0,0.0413692]
[1766697055163,0.00017002,88031.0,88017.0,0.0113692]
[1766697055854,0.0113682,88027.0,88014.0,0.057]
[1766697056261,0.0113682,88027.0,88014.0,0.087]
[1766697056466,0.0113682,88027.0,88014.0,0.057]
[1766697056870,0.00017002,88031.0,88014.0,0.057]
[1766697057068,0.00017002,88031.0,88009.0,0.057]
[1766697057368,0.00017002,88031.0,88011.0,0.0113701]
[1766697057369,0.0113681,88027.0,88011.0,0.0113701]
[1766697057667,0.0683677,88030.0,88011.0,0.0413701]
[1766697057962,0.0683677,88030.0,88013.0,0.0113698]
[1766697058162,0.0683677,88030.0,88013.0,0.0413698]
[1766697059578,0.09681002,88031.0,88013.0,0.03]
[1766697059579,0.00017002,88031.0,88013.0,0.03]
[1766697060070,0.15364,88038.0,88021.0,0.0113687]
[1766697060270,0.15364,88038.0,88021.0,0.0413687]
[1766697060572,0.057,88038.0,88021.0,0.0413687]
[1766697060764,0.057,88038.0,88023.0,0.0113685]
[1766697060962,0.0683667,88038.0,88023.0,0.0113685]
[1766697061161,0.0683667,88038.0,88022.0,0.00017045]
[1766697061162,0.0113667,88038.0,88022.0,0.00017045]
[1766697061670,0.0113667,88038.0,88022.0,0.03017045]
[1766697061974,0.0113667,88038.0,88022.0,0.00017045]
[1766697062372,0.0113667,88038.0,88022.0,0.03017045]
[1766697062572,0.0113667,88038.0,88022.0,0.00017045]
[1766697062989,0.0113667,88038.0,88022.0,0.03017045]
[1766697063371,0.00017045,88039.0,88022.0,0.00017045]
[1766697063563,0.00017045,88039.0,88014.0,0.09664]
[1766697063768,0.0113678,88029.0,88014.0,0.12664]
[1766697064568,0.0113681,88027.0,88014.0,0.12664]
[1766697065268,0.0113677,88030.0,88014.0,0.12664]
[1766697065781,0.00017045,88039.0,88014.0,0.12664]
[1766697066371,0.0113681,88027.0,88014.0,0.12664]
[1766697066780,0.0113678,88030.0,88014.0,0.12664]
[1766697066983,0.011368,88028.0,88014.0,0.12664]
[1766697067782,0.011368,88028.0,88015.0,0.0113695]
[1766697068174,0.0113676,88031.0,88015.0,0.0413695]
[1766697068365,0.0113676,88031.0,88015.0,0.0113695]
[1766697068570,0.0113676,88031.0,88015.0,0.0413695]
[1766697069081,0.0113672,88034.0,88017.0,0.0113693]
[1766697069276,0.0113672,88034.0,88017.0,0.0413693]
[1766697070480,0.00017045,88039.0,88017.0,0.03]
[1766697070787,0.00017045,88039.0,88014.0,0.09664]
[1766697070788,0.0113677,88030.0,88016.0,0.0113694]
[1766697071077,0.0113668,88037.0,88014.0,0.09664]
[1766697071271,0.0113688,88021.0,88014.0,0.09664]
[1766697071668,0.0113685,88024.0,88014.0,0.09664]
[1766697073287,0.00017045,88039.0,88014.0,0.09664]
[1766697073987,0.0113684,88025.0,88014.0,0.09664]
[1766697074487,0.0113681,88027.0,88014.0,0.09664]
[1766697074689,0.0113683,88025.0,88014.0,0.09664]
[1766697075586,0.011368,88028.0,88014.0,0.09664]
[1766697078186,0.011368,88028.0,88015.0,0.01136]
[1766697082395,0.011368,88028.0,88015.0,0.04136]
[1766697082582,0.011368,88028.0,88015.0,0.01136]
[1766697082783,0.011368,88028.0,88015.0,0.04136]
[1766697083182,0.011368,88028.0,88015.0,0.01136]
[1766697084090,0.011368,88028.0,88015.0,0.04136]
[1766697084295,0.0113684,88025.0,88014.0,0.09664]
[1766697088188,0.06085645,88038.0,88014.0,0.09664]
[1766697088189,0.0113674,88032.0,88014.0,0.12664]
[1766697088392,0.0113674,88032.0,88017.0,0.0113693]
[1766697088692,0.09664,88034.0,88014.0,0.1080096]
[1766697088888,0.0113681,88027.0,88014.0,0.12664]
[1766697089089,0.0113684,88025.0,88014.0,0.12664]